[Event "Open Cappelle-la-Grande"]
[Date "2025.02.21"]
[White "Belkaid, Sohan"]
[Black "Bournel, Antoine"]
[WhiteElo "2370"]
[BlackElo "2432"]
[Round "9.9.13"]
[Result "1-0"]
[TimeControl "40/5400+30:1800+30"]

1. e4 {[%clk 1:30:57]} 1... e5 {[%clk 1:27:37]} 2. Nf3 {[%clk 1:29:49]} 2... Nc6
{[%clk 1:27:52]} 3. Bc4 {[%clk 1:24:03]} 3... Bc5 {[%clk 1:27:20]} 4. d3 {[%clk
1:23:31]} 4... Nf6 {[%clk 1:27:11]} 5. a4 {[%clk 1:23:27]} 5... d6 {[%clk
1:23:44]} 6. O-O {[%clk 1:16:57]} 6... a6 {[%clk 1:18:56]} 7. a5 {[%clk
1:13:31]} 7... h6 {[%clk 1:14:47]} 8. c3 {[%clk 1:08:13]} 8... Ba7 {[%clk
1:12:29]} 9. Qb3 {[%clk 1:05:44]} 9... O-O {[%clk 1:09:25]} 10. Be3 {[%clk
1:05:55]} 10... Bxe3 {[%clk 1:08:40]} 11. fxe3 {[%clk 1:06:04]} 11... Nb8 {[%clk
1:04:10]} 12. Nbd2 {[%clk 1:00:07]} 12... Nbd7 {[%clk 0:59:58]} 13. d4 {[%clk
0:51:36]} 13... g6 {[%clk 0:46:49]} 14. h3 {[%clk 0:45:06]} 14... Kg7 {[%clk
0:46:44]} 15. Rf2 {[%clk 0:43:37]} 15... c6 {[%clk 0:40:12]} 16. Qa2 {[%clk
0:36:09]} 16... Nh7 {[%clk 0:27:44]} 17. Raf1 {[%clk 0:24:03]} 17... f6 {[%clk
0:27:35]} 18. Qa3 {[%clk 0:21:52]} 18... Qc7 {[%clk 0:25:04]} 19. Ba2 {[%clk
0:18:43]} 19... b5 {[%clk 0:24:40]} 20. axb6 {[%clk 0:19:02]} 20... Nxb6 {[%clk
0:25:04]} 21. Qa5 {[%clk 0:19:11]} 21... Ra7 {[%clk 0:10:58]} 22. dxe5 {[%clk
0:15:28]} 22... dxe5 {[%clk 0:10:14]} 23. Nxe5 {[%clk 0:14:46]} 23... Qxe5
{[%clk 0:10:20]} 24. Qxb6 {[%clk 0:15:00]} 24... Re7 {[%clk 0:10:40]} 25. Qxc6
{[%clk 0:12:55]} 25... Ng5 {[%clk 0:09:39]} 26. h4 {[%clk 0:09:23]} 26... Nxe4
{[%clk 0:05:05]} 27. Nxe4 {[%clk 0:09:34]} 27... Qxe4 {[%clk 0:05:11]} 28. Rxf6
{[%clk 0:08:33]} 28... Qxe3+ {[%clk 0:05:18]} 29. Kh1 {[%clk 0:06:20]} 29... Bb7
{[%clk 0:00:34]} 30. Rxg6+ {[%clk 0:04:19]} 30... Kh7 {[%clk 0:01:03]} 31. Rxh6+
{[%clk 0:03:54]} 31... Qxh6 {[%clk 0:01:31]} 32. Qxh6+ {[%clk 0:04:09]} 32...
Kxh6 {[%clk 0:02:00]} 33. Rxf8 {[%clk 0:04:29]} 33... Re2 {[%clk 0:02:20]} 34.
Rh8+ {[%clk 0:02:28]} 34... Kg6 {[%clk 0:02:25]} 35. Rg8+ {[%clk 0:00:35]} 35...
Kh5 {[%clk 0:02:34]} 36. Bf7+ {[%clk 0:00:45]} 36... Kxh4 {[%clk 0:02:39]} 37.
b4 {[%clk 0:00:45]} 37... Re7 {[%clk 0:00:32]} 38. Rg7 {[%clk 0:00:53]} 38...
Re2 {[%clk 0:00:31]} 39. c4 {[%clk 0:00:39]} 39... Rb2 {[%clk 0:00:37]} 40. Kh2
{[%clk 0:00:40]} 40... Be4 {[%clk 0:00:39]} 41. Be8 {[%clk 0:26:40]} 41... Bd3
{[%clk 0:19:05]} 42. c5 {[%clk 0:15:46]} 42... Bb5 {[%clk 0:08:02]} 43. Bxb5
{[%clk 0:10:18]} 43... axb5 {[%clk 0:08:31]} 44. Rg8 {[%clk 0:09:55]} 44... Kh5
{[%clk 0:03:45]} 45. c6 {[%clk 0:09:36]} 45... Rc2 {[%clk 0:04:14]} 46. Rc8
{[%clk 0:09:22]} 46... Kg6 {[%clk 0:04:35]} 47. c7 {[%clk 0:09:03]} 47... Kh7
{[%clk 0:04:29]} 48. Kh3 {[%clk 0:09:19]} 48... Rc4 {[%clk 0:04:39]} 49. g4
{[%clk 0:09:36]} 49... Kg7 {[%clk 0:04:31]} 50. Kh4 {[%clk 0:10:00]} 50... Rc6
{[%clk 0:04:15]} 51. Kg5 {[%clk 0:10:09]} 51... Kh7 {[%clk 0:02:02]} 52. Kf5
{[%clk 0:10:25]} 52... Kg7 {[%clk 0:01:46]} 53. Ke5 {[%clk 0:10:41]} 53... Kh7
{[%clk 0:01:44]} 54. Kd5 {[%clk 0:11:02]} 54... Rc1 {[%clk 0:01:53]} 55. Kd6
{[%clk 0:11:26]} 55... Kg7 {[%clk 0:02:04]} 56. Rd8 {[%clk 0:11:40]} 56... Rd1+
{[%clk 0:02:24]} 57. Kc6 {[%clk 0:12:04]} 57... Rc1+ {[%clk 0:02:51]} 58. Kb7
{[%clk 0:12:26]} 1-0

[Variant "Standard"]
[Site "Europe Echecs"]

[Event "Open Cappelle-la-Grande"]
[Date "2025.02.21"]
[White "Froeyman, Helmut"]
[Black "Laurent-Paoli, Pierre"]
[WhiteElo "2274"]
[BlackElo "2565"]
[Round "9.9.14"]
[Result "1/2-1/2"]
[TimeControl "40/5400+30:1800+30"]

1. e4 {[%clk 1:30:58]} 1... c5 {[%clk 1:18:27]} 2. Nf3 {[%clk 1:31:21]} 2... Nc6
{[%clk 1:18:51]} 3. d4 {[%clk 1:31:47]} 3... cxd4 {[%clk 1:19:18]} 4. Nxd4
{[%clk 1:32:13]} 4... Nf6 {[%clk 1:19:45]} 5. Nc3 {[%clk 1:32:36]} 5... e5
{[%clk 1:20:10]} 6. Ndb5 {[%clk 1:32:59]} 6... d6 {[%clk 1:20:35]} 7. Bg5 {[%clk
1:33:12]} 7... a6 {[%clk 1:21:01]} 8. Na3 {[%clk 1:33:33]} 8... b5 {[%clk
1:21:26]} 9. Bxf6 {[%clk 1:33:50]} 9... gxf6 {[%clk 1:21:51]} 10. Nd5 {[%clk
1:34:17]} 10... f5 {[%clk 1:21:38]} 11. Bd3 {[%clk 1:34:34]} 11... Be6 {[%clk
1:21:11]} 12. O-O {[%clk 1:34:26]} 12... Bxd5 {[%clk 1:21:05]} 13. exd5 {[%clk
1:34:51]} 13... Ne7 {[%clk 1:21:33]} 14. c3 {[%clk 1:33:30]} 14... Bg7 {[%clk
1:21:18]} 15. Nc2 {[%clk 1:33:27]} 15... e4 {[%clk 0:54:24]} 16. Be2 {[%clk
1:33:35]} 16... O-O {[%clk 0:54:50]} 17. Qd2 {[%clk 1:32:19]} 17... Qd7 {[%clk
0:48:40]} 18. Rad1 {[%clk 1:25:31]} 18... Ng6 {[%clk 0:40:22]} 19. f4 {[%clk
1:24:07]} 19... exf3 {[%clk 0:40:48]} 20. gxf3 {[%clk 1:18:28]} 20... Rae8
{[%clk 0:37:46]} 21. f4 {[%clk 1:14:26]} 21... Bh6 {[%clk 0:35:10]} 22. Bd3
{[%clk 1:13:14]} 22... Kh8 {[%clk 0:33:36]} 23. Kh1 {[%clk 1:10:50]} 23... Re5
{[%clk 0:31:43]} 24. Ne1 {[%clk 0:59:28]} 24... Rxd5 {[%clk 0:26:39]} 25. Ng2
{[%clk 0:58:31]} 25... Qc6 {[%clk 0:21:54]} 26. Qf2 {[%clk 0:43:58]} 26... Nxf4
{[%clk 0:14:19]} 27. Qf3 {[%clk 0:43:18]} 27... Nxd3 {[%clk 0:14:44]} 28. Rxd3
{[%clk 0:43:30]} 28... Rc5 {[%clk 0:15:09]} 29. Qxc6 {[%clk 0:33:23]} 29... Rxc6
{[%clk 0:15:37]} 30. Nh4 {[%clk 0:33:31]} 30... Bg7 {[%clk 0:13:00]} 31. Nxf5
{[%clk 0:33:03]} 31... Be5 {[%clk 0:13:26]} 32. Rfd1 {[%clk 0:28:36]} 32... Rd8
{[%clk 0:12:19]} 33. R3d2 {[%clk 0:25:47]} 33... Rb6 {[%clk 0:10:07]} 34. Rd5
{[%clk 0:17:42]} 34... f6 {[%clk 0:10:06]} 35. R5d2 {[%clk 0:14:24]} 35... a5
{[%clk 0:08:01]} 36. Rg2 {[%clk 0:11:28]} 36... Rg8 {[%clk 0:08:27]} 37. Rgd2
{[%clk 0:10:41]} 37... b4 {[%clk 0:06:44]} 38. cxb4 {[%clk 0:08:52]} 38... Rxb4
{[%clk 0:07:12]} 39. b3 {[%clk 0:08:50]} 39... Bf4 {[%clk 0:06:48]} 40. Re2
{[%clk 0:05:24]} 40... Rd8 {[%clk 0:01:50]} 41. Nd4 {[%clk 0:00:38]} 41... Rc8
{[%clk 0:00:49]} 42. Nf5 {[%clk 0:30:20]} 42... Rd8 {[%clk 0:30:01]} 43. Nd4
{[%clk 0:30:39]} 43... Ra8 {[%clk 0:29:19]} 44. Nf5 {[%clk 0:24:33]} 44... a4
{[%clk 0:27:14]} 45. Nxd6 {[%clk 0:23:26]} 45... axb3 {[%clk 0:27:23]} 46. axb3
{[%clk 0:23:35]} 46... Rxb3 {[%clk 0:26:18]} 47. Nf5 {[%clk 0:23:06]} 47... Rb5
{[%clk 0:25:19]} 48. Ng3 {[%clk 0:20:37]} 48... Rg8 {[%clk 0:24:20]} 49. Rf1
{[%clk 0:20:08]} 49... Be5 {[%clk 0:22:49]} 50. Kg2 {[%clk 0:18:11]} 50... Rg4
{[%clk 0:22:12]} 51. Kh3 {[%clk 0:16:34]} 51... Rbb4 {[%clk 0:22:18]} 52. Rf5
{[%clk 0:13:43]} 52... Kg7 {[%clk 0:21:16]} 53. Rf3 {[%clk 0:13:22]} 53... Kg6
{[%clk 0:20:19]} 54. Rfe3 {[%clk 0:12:53]} 54... Rg5 {[%clk 0:15:16]} 55. Re4
{[%clk 0:12:48]} 55... Rb8 {[%clk 0:15:39]} 56. Rg4 {[%clk 0:12:14]} 56... h6
{[%clk 0:15:52]} 57. Re3 {[%clk 0:11:23]} 57... Rb2 {[%clk 0:16:15]} 58. Ra4
{[%clk 0:05:54]} 58... h5 {[%clk 0:14:40]} 59. Rae4 {[%clk 0:05:02]} 59... Rb8
{[%clk 0:12:38]} 60. Re2 {[%clk 0:05:02]} 60... Kh6 {[%clk 0:12:27]} 61. R2e3
{[%clk 0:04:45]} 61... Ra8 {[%clk 0:11:59]} 62. Rc4 {[%clk 0:04:40]} 62... Rag8
{[%clk 0:11:22]} 63. Ra4 {[%clk 0:03:45]} 63... Rg4 {[%clk 0:08:45]} 64. Ra6
{[%clk 0:02:48]} 64... R8g6 {[%clk 0:07:34]} 65. Rf3 {[%clk 0:02:25]} 65... h4
{[%clk 0:02:01]} 66. Nf5+ {[%clk 0:02:25]} 66... Kg5 {[%clk 0:02:31]} 67. Ne3
{[%clk 0:01:23]} 67... Rb4 {[%clk 0:02:05]} 68. Ra2 {[%clk 0:00:50]} 68... Kh5
{[%clk 0:01:39]} 69. Ra8 {[%clk 0:00:35]} 69... Bb8 {[%clk 0:00:59]} 70. Ra5+
{[%clk 0:00:49]} 70... Rg5 {[%clk 0:01:14]} 71. Ra2 {[%clk 0:01:00]} 71... Be5
{[%clk 0:01:10]} 72. Rd2 {[%clk 0:00:50]} 72... Rb3 {[%clk 0:01:25]} 73. Rdf2
{[%clk 0:00:58]} 73... Bd4 {[%clk 0:00:42]} 74. Nc2 {[%clk 0:01:19]} 74... Rxf3+
{[%clk 0:00:44]} 75. Rxf3 {[%clk 0:01:48]} 75... Be5 {[%clk 0:00:55]} 76. Ne3
{[%clk 0:01:56]} 76... Rg1 {[%clk 0:00:56]} 77. Rf1 {[%clk 0:02:08]} 77... Rxf1
{[%clk 0:01:14]} 78. Nxf1 {[%clk 0:02:37]} 78... Bf4 {[%clk 0:01:38]} 79. Kg2
{[%clk 0:02:41]} 79... Kg4 {[%clk 0:00:44]} 80. h3+ {[%clk 0:03:07]} 80... Kg5
{[%clk 0:00:50]} 81. Kf2 {[%clk 0:03:17]} 81... Kg6 {[%clk 0:01:13]} 82. Ke2
{[%clk 0:03:23]} 82... f5 {[%clk 0:01:04]} 83. Kf3 {[%clk 0:03:29]} 83... Kg5
{[%clk 0:01:31]} 84. Kf2 {[%clk 0:02:45]} 84... Kf6 {[%clk 0:01:48]} 85. Ke2
{[%clk 0:02:58]} 85... Ke6 {[%clk 0:02:14]} 86. Kf2 {[%clk 0:02:48]} 86... Kd5
{[%clk 0:02:40]} 87. Kf3 {[%clk 0:03:00]} 87... Ke5 {[%clk 0:03:07]} 88. Kf2
{[%clk 0:02:02]} 88... Ke4 {[%clk 0:03:12]} 89. Ke2 {[%clk 0:02:17]} 89... Kd5
{[%clk 0:01:12]} 90. Kf3 {[%clk 0:02:30]} 90... Ke5 {[%clk 0:01:40]} 91. Kf2
{[%clk 0:02:21]} 91... Ke4 {[%clk 0:00:56]} 92. Ke2 {[%clk 0:02:50]} 92... Bg3
{[%clk 0:01:14]} 93. Nd2+ {[%clk 0:03:13]} 93... Kf4 {[%clk 0:01:12]} 94. Nf3
{[%clk 0:03:20]} 94... Ke4 {[%clk 0:01:37]} 95. Nd2+ {[%clk 0:03:17]} 95... Kd4
{[%clk 0:02:03]} 96. Nf3+ {[%clk 0:02:52]} 96... Ke4 {[%clk 0:02:28]} 97. Nd2+
{[%clk 0:03:12]} 97... Ke5 {[%clk 0:02:57]} 98. Kf3 {[%clk 0:02:45]} 98... Be1
{[%clk 0:02:55]} 99. Nc4+ {[%clk 0:03:08]} 99... Ke6 {[%clk 0:03:13]} 100. Ne3
{[%clk 0:03:36]} 100... Bd2 {[%clk 0:03:30]} 101. Nxf5 {[%clk 0:03:20]} 101...
Kxf5 {[%clk 0:03:56]} 102. Kg2 {[%clk 0:03:46]} 102... Kf4 {[%clk 0:04:23]} 103.
Kh1 {[%clk 0:04:14]} 103... Be3 {[%clk 0:04:50]} 104. Kg2 {[%clk 0:04:38]}
104... Bd4 {[%clk 0:05:18]} 105. Kh1 {[%clk 0:05:05]} 105... Kf3 {[%clk
0:05:42]} 106. Kh2 {[%clk 0:05:30]} 106... Be5+ {[%clk 0:06:11]} 107. Kh1 {[%clk
0:05:54]} 107... Kg3 {[%clk 0:06:38]} 108. Kg1 {[%clk 0:06:19]} 108... Kxh3
{[%clk 0:07:04]} 109. Kh1 {[%clk 0:06:46]} 109... Bh2 {[%clk 0:07:29]} 1/2-1/2

[Variant "Standard"]
[Site "Europe Echecs"]

[Event "Open Cappelle-la-Grande"]
[Date "2025.02.21"]
[White "Nottola, Adrien"]
[Black "Degraeve, Jean-Marc"]
[WhiteElo "2253"]
[BlackElo "2482"]
[Round "9.9.15"]
[Result "1/2-1/2"]
[TimeControl "40/5400+30:1800+30"]

1. e4 {[%clk 1:30:57]} 1... e5 {[%clk 1:30:51]} 2. Nf3 {[%clk 1:31:20]} 2... Nc6
{[%clk 1:31:17]} 3. Bb5 {[%clk 1:31:44]} 3... Bc5 {[%clk 1:31:21]} 4. c3 {[%clk
1:31:07]} 4... f5 {[%clk 1:31:41]} 5. d4 {[%clk 1:22:22]} 5... fxe4 {[%clk
1:31:33]} 6. Nfd2 {[%clk 1:10:49]} 6... Be7 {[%clk 1:00:28]} 7. d5 {[%clk
1:05:05]} 7... e3 {[%clk 1:00:42]} 8. fxe3 {[%clk 1:05:08]} 8... Nb8 {[%clk
1:01:04]} 9. Qh5+ {[%clk 1:04:33]} 9... g6 {[%clk 1:01:29]} 10. Qxe5 {[%clk
1:04:55]} 10... Nf6 {[%clk 1:01:57]} 11. O-O {[%clk 0:52:31]} 11... O-O {[%clk
1:01:19]} 12. Bd3 {[%clk 0:52:36]} 12... d6 {[%clk 0:59:37]} 13. Qg3 {[%clk
0:52:41]} 13... Nbd7 {[%clk 0:59:35]} 14. Nf3 {[%clk 0:52:07]} 14... Kg7 {[%clk
0:40:18]} 15. c4 {[%clk 0:49:00]} 15... Nc5 {[%clk 0:38:31]} 16. Bc2 {[%clk
0:49:11]} 16... Nfe4 {[%clk 0:35:08]} 17. Qe1 {[%clk 0:49:11]} 17... Bf6 {[%clk
0:35:18]} 18. Nd4 {[%clk 0:42:44]} 18... a5 {[%clk 0:35:39]} 19. Nc3 {[%clk
0:35:54]} 19... Nxc3 {[%clk 0:32:55]} 20. Qxc3 {[%clk 0:35:42]} 20... Bd7 {[%clk
0:33:10]} 21. b3 {[%clk 0:31:19]} 21... Qe7 {[%clk 0:32:52]} 22. Bb2 {[%clk
0:31:14]} 22... Be5 {[%clk 0:33:13]} 23. Qd2 {[%clk 0:30:40]} 23... Kg8 {[%clk
0:32:10]} 24. Bc3 {[%clk 0:30:18]} 24... b6 {[%clk 0:31:41]} 25. Nf3 {[%clk
0:28:24]} 25... Bxc3 {[%clk 0:31:39]} 26. Qxc3 {[%clk 0:28:52]} 26... Rae8
{[%clk 0:31:56]} 27. e4 {[%clk 0:23:34]} 27... Nxe4 {[%clk 0:31:05]} 28. Bxe4
{[%clk 0:23:59]} 28... Qxe4 {[%clk 0:31:30]} 29. Rae1 {[%clk 0:24:24]} 29... Qf4
{[%clk 0:31:41]} 30. Ne5 {[%clk 0:22:57]} 30... Qxf1+ {[%clk 0:30:26]} 31. Rxf1
{[%clk 0:21:27]} 31... Rxf1+ {[%clk 0:30:39]} 32. Kxf1 {[%clk 0:21:51]} 32...
Rxe5 {[%clk 0:31:07]} 33. Qg3 {[%clk 0:20:27]} 33... Bf5 {[%clk 0:27:19]} 34.
Qh4 {[%clk 0:18:10]} 34... Re8 {[%clk 0:27:35]} 35. Kg1 {[%clk 0:14:17]} 35...
Bb1 {[%clk 0:27:14]} 36. Qf2 {[%clk 0:11:49]} 36... Rf8 {[%clk 0:27:11]} 37. Qb2
{[%clk 0:12:04]} 37... Bf5 {[%clk 0:23:42]} 38. h3 {[%clk 0:11:49]} 38... h5
{[%clk 0:23:50]} 39. Qd2 {[%clk 0:11:44]} 39... Kf7 {[%clk 0:23:09]} 40. Qh6
{[%clk 0:07:39]} 40... Kg8 {[%clk 0:20:03]} 41. Qe3 {[%clk 0:03:35]} 41... Kf7
{[%clk 0:17:44]} 42. Kf2 {[%clk 0:02:40]} 42... Re8 {[%clk 0:17:50]} 43. Qh6
{[%clk 0:26:51]} 1/2-1/2

[Variant "Standard"]
[Site "Europe Echecs"]

[Event "Open Cappelle-la-Grande"]
[Date "2025.02.21"]
[White "Suleymenov, Alisher"]
[Black "Meillon, Judicael"]
[WhiteElo "2481"]
[BlackElo "2321"]
[Round "9.9.16"]
[Result "1-0"]
[TimeControl "40/5400+30:1800+30"]

1. d4 {[%clk 1:30:59]} 1... d5 {[%clk 1:27:10]} 2. c4 {[%clk 1:31:24]} 2... c6
{[%clk 1:26:57]} 3. Nc3 {[%clk 1:31:40]} 3... Nf6 {[%clk 1:27:22]} 4. Nf3 {[%clk
1:31:59]} 4... dxc4 {[%clk 1:27:50]} 5. a4 {[%clk 1:29:36]} 5... e6 {[%clk
1:27:32]} 6. e3 {[%clk 1:29:40]} 6... c5 {[%clk 1:27:55]} 7. Bxc4 {[%clk
1:30:04]} 7... Nc6 {[%clk 1:27:57]} 8. O-O {[%clk 1:30:18]} 8... cxd4 {[%clk
1:27:59]} 9. exd4 {[%clk 1:30:24]} 9... Be7 {[%clk 1:28:23]} 10. Qe2 {[%clk
1:29:30]} 10... O-O {[%clk 1:28:34]} 11. Rd1 {[%clk 1:29:58]} 11... Nb4 {[%clk
1:28:05]} 12. Bg5 {[%clk 1:28:19]} 12... Bd7 {[%clk 1:24:45]} 13. d5 {[%clk
1:28:02]} 13... Nbxd5 {[%clk 1:19:53]} 14. Nxd5 {[%clk 1:27:37]} 14... exd5
{[%clk 1:20:14]} 15. Bxd5 {[%clk 1:28:02]} 15... Nxd5 {[%clk 1:20:37]} 16. Rxd5
{[%clk 1:28:29]} 16... Bxg5 {[%clk 1:20:59]} 17. Nxg5 {[%clk 1:28:55]} 17... h6
{[%clk 1:21:25]} 18. Qd2 {[%clk 1:28:44]} 18... hxg5 {[%clk 1:17:44]} 19. Rxd7
{[%clk 1:29:10]} 19... Qf6 {[%clk 1:11:19]} 20. Rd1 {[%clk 1:29:33]} 20... Rac8
{[%clk 1:05:38]} 21. h3 {[%clk 1:24:34]} 21... b6 {[%clk 0:58:41]} 22. b4 {[%clk
1:05:19]} 22... a5 {[%clk 0:47:03]} 23. bxa5 {[%clk 0:49:43]} 23... bxa5 {[%clk
0:45:26]} 24. Qxa5 {[%clk 0:50:08]} 24... Rc2 {[%clk 0:38:42]} 25. R7d2 {[%clk
0:50:01]} 25... Rxd2 {[%clk 0:36:54]} 26. Qxd2 {[%clk 0:49:54]} 26... Ra8 {[%clk
0:36:38]} 27. Qb4 {[%clk 0:45:38]} 27... Qe5 {[%clk 0:36:02]} 28. Qb5 {[%clk
0:43:52]} 28... Qf6 {[%clk 0:32:29]} 29. a5 {[%clk 0:35:11]} 29... Qc3 {[%clk
0:28:42]} 30. a6 {[%clk 0:27:45]} 30... Qa3 {[%clk 0:25:41]} 31. Qb7 {[%clk
0:24:39]} 31... Rxa6 {[%clk 0:25:44]} 32. Qc8+ {[%clk 0:24:52]} 32... Kh7 {[%clk
0:26:10]} 33. Qf5+ {[%clk 0:25:17]} 33... Kh6 {[%clk 0:26:07]} 34. Qxf7 {[%clk
0:23:54]} 34... Rf6 {[%clk 0:25:59]} 35. Qe8 {[%clk 0:22:23]} 35... Qc5 {[%clk
0:25:54]} 36. Qe2 {[%clk 0:21:48]} 36... Kg6 {[%clk 0:23:05]} 37. Rf1 {[%clk
0:17:39]} 37... Qc6 {[%clk 0:21:55]} 38. Qd3+ {[%clk 0:16:12]} 38... Kh6 {[%clk
0:22:15]} 39. Rd1 {[%clk 0:15:02]} 39... Qc5 {[%clk 0:22:17]} 40. Qg3 {[%clk
0:13:29]} 40... Qb4 {[%clk 0:20:17]} 41. Qe3 {[%clk 0:07:04]} 41... Qb6 {[%clk
0:18:17]} 42. Qd2 {[%clk 0:29:31]} 42... Kg6 {[%clk 0:46:37]} 43. Qc2+ {[%clk
0:29:20]} 43... Kh6 {[%clk 0:46:47]} 44. Rd3 {[%clk 0:28:43]} 44... Rc6 {[%clk
0:43:00]} 45. Qd2 {[%clk 0:28:08]} 45... Qc7 {[%clk 0:42:30]} 46. Rg3 {[%clk
0:24:22]} 46... Qf4 {[%clk 0:41:02]} 47. Qxf4 {[%clk 0:19:28]} 47... gxf4 {[%clk
0:41:30]} 48. Rg4 {[%clk 0:19:57]} 48... f3 {[%clk 0:29:00]} 49. gxf3 {[%clk
0:19:52]} 49... Ra6 {[%clk 0:29:29]} 50. f4 {[%clk 0:15:27]} 50... Rb6 {[%clk
0:22:19]} 51. Kg2 {[%clk 0:15:41]} 51... Rb3 {[%clk 0:22:42]} 52. Rg5 {[%clk
0:14:53]} 52... Ra3 {[%clk 0:21:46]} 53. Rg3 {[%clk 0:09:14]} 53... Ra4 {[%clk
0:20:39]} 54. Rg4 {[%clk 0:09:25]} 54... Ra5 {[%clk 0:20:29]} 55. h4 {[%clk
0:08:19]} 55... Ra4 {[%clk 0:18:54]} 56. Kg3 {[%clk 0:05:47]} 56... Ra3+ {[%clk
0:18:02]} 57. f3 {[%clk 0:06:16]} 57... Ra1 {[%clk 0:17:14]} 58. f5 {[%clk
0:06:16]} 58... Kh5 {[%clk 0:17:25]} 59. Rg5+ {[%clk 0:04:11]} 59... Kh6 {[%clk
0:17:52]} 60. Rg6+ {[%clk 0:04:37]} 60... Kh7 {[%clk 0:15:16]} 61. Kg4 {[%clk
0:03:58]} 61... Rg1+ {[%clk 0:12:58]} 62. Kh5 {[%clk 0:04:21]} 62... Rf1 {[%clk
0:12:52]} 63. Rg3 {[%clk 0:04:46]} 63... Rf2 {[%clk 0:12:40]} 64. Kg5 {[%clk
0:05:10]} 64... Ra2 {[%clk 0:13:06]} 65. f4 {[%clk 0:04:55]} 65... Ra5 {[%clk
0:11:47]} 66. Re3 {[%clk 0:02:31]} 66... Ra6 {[%clk 0:11:08]} 67. h5 {[%clk
0:02:11]} 67... Ra5 {[%clk 0:10:53]} 68. Re7 {[%clk 0:02:27]} 68... Ra6 {[%clk
0:11:13]} 69. Re6 {[%clk 0:02:17]} 69... Ra5 {[%clk 0:11:31]} 70. Rb6 {[%clk
0:02:07]} 70... Rc5 {[%clk 0:11:24]} 71. Rd6 {[%clk 0:01:22]} 71... Ra5 {[%clk
0:11:33]} 72. Rd7 {[%clk 0:01:03]} 72... Ra6 {[%clk 0:11:38]} 73. Kg4 {[%clk
0:01:20]} 73... Kh6 {[%clk 0:10:40]} 74. Re7 {[%clk 0:01:42]} 74... Kh7 {[%clk
0:10:13]} 75. Re6 {[%clk 0:02:09]} 75... Ra1 {[%clk 0:10:16]} 76. f6 {[%clk
0:02:27]} 76... gxf6 {[%clk 0:10:10]} 77. Rxf6 {[%clk 0:02:35]} 77... Kg7 {[%clk
0:10:16]} 78. Rg6+ {[%clk 0:02:34]} 78... Kf7 {[%clk 0:08:59]} 79. Rb6 {[%clk
0:02:24]} 79... Kg7 {[%clk 0:07:32]} 80. Rb3 {[%clk 0:01:41]} 80... Kh6 {[%clk
0:07:01]} 81. Rb6+ {[%clk 0:01:37]} 81... Kg7 {[%clk 0:07:30]} 82. Re6 {[%clk
0:01:08]} 82... Kf7 {[%clk 0:06:25]} 83. Kf5 {[%clk 0:00:56]} 83... Ra5+ {[%clk
0:05:52]} 84. Re5 {[%clk 0:00:54]} 84... Ra6 {[%clk 0:06:21]} 85. Rb5 {[%clk
0:01:35]} 85... Kg7 {[%clk 0:06:18]} 86. Kg5 {[%clk 0:02:04]} 86... Ra7 {[%clk
0:05:59]} 87. f5 {[%clk 0:02:29]} 87... Rc7 {[%clk 0:05:59]} 88. Rb6 {[%clk
0:01:42]} 88... Ra7 {[%clk 0:06:10]} 89. Re6 {[%clk 0:01:37]} 89... Rb7 {[%clk
0:06:11]} 90. Re5 {[%clk 0:01:41]} 90... Kf7 {[%clk 0:05:51]} 91. f6 {[%clk
0:01:29]} 91... Rb1 {[%clk 0:06:00]} 92. Re7+ {[%clk 0:01:57]} 92... Kg8 {[%clk
0:04:31]} 93. h6 {[%clk 0:01:28]} 93... Rg1+ {[%clk 0:04:24]} 94. Kf5 {[%clk
0:01:57]} 94... Rf1+ {[%clk 0:04:50]} 95. Ke6 {[%clk 0:02:03]} 95... Kf8 {[%clk
0:04:48]} 96. Rf7+ {[%clk 0:01:51]} 96... Kg8 {[%clk 0:04:58]} 97. Rg7+ {[%clk
0:02:07]} 97... Kh8 {[%clk 0:05:21]} 98. Rg5 {[%clk 0:01:09]} 98... Ra1 {[%clk
0:05:15]} 99. f7 {[%clk 0:00:43]} 99... Ra6+ {[%clk 0:05:29]} 100. Kd5 {[%clk
0:00:50]} 100... Ra5+ {[%clk 0:05:21]} 101. Kc6 {[%clk 0:01:06]} 101... Rxg5
{[%clk 0:05:19]} 102. f8=Q+ {[%clk 0:01:30]} 102... Kh7 {[%clk 0:05:43]} 103.
Kd6 {[%clk 0:01:12]} 103... Rg1 {[%clk 0:04:49]} 104. Ke5 {[%clk 0:00:59]}
104... Re1+ {[%clk 0:03:32]} 105. Kd4 {[%clk 0:01:28]} 105... Rd1+ {[%clk
0:03:49]} 106. Ke3 {[%clk 0:01:44]} 106... Rg1 {[%clk 0:04:08]} 107. Qf4 {[%clk
0:00:44]} 107... Rg6 {[%clk 0:03:10]} 108. Ke4 {[%clk 0:00:59]} 108... Re6+
{[%clk 0:03:27]} 109. Kf5 {[%clk 0:01:14]} 109... Ra6 {[%clk 0:01:52]} 110. Qc7+
{[%clk 0:01:21]} 110... Kxh6 {[%clk 0:02:16]} 111. Qh2+ {[%clk 0:01:49]} 111...
Kg7 {[%clk 0:02:40]} 112. Qb2+ {[%clk 0:02:17]} 1-0

[Variant "Standard"]
[Site "Europe Echecs"]

[Event "Open Cappelle-la-Grande"]
[Date "2025.02.21"]
[White "Ringuet, Noe"]
[Black "Flom, Gabriel"]
[WhiteElo "2239"]
[BlackElo "2455"]
[Round "9.9.17"]
[Result "1-0"]
[TimeControl "40/5400+30:1800+30"]

1. d4 {[%clk 1:30:13]} 1... Nf6 {[%clk 1:30:58]} 2. Bf4 {[%clk 1:30:15]} 2... d5
{[%clk 1:31:09]} 3. e3 {[%clk 1:30:23]} 3... e6 {[%clk 1:30:56]} 4. Nd2 {[%clk
1:30:02]} 4... c5 {[%clk 1:31:13]} 5. c3 {[%clk 1:30:08]} 5... Nc6 {[%clk
1:31:01]} 6. Ngf3 {[%clk 1:29:39]} 6... Be7 {[%clk 1:31:28]} 7. h3 {[%clk
1:28:07]} 7... Bd6 {[%clk 1:31:54]} 8. dxc5 {[%clk 1:26:36]} 8... Bxc5 {[%clk
1:29:22]} 9. Bd3 {[%clk 1:22:35]} 9... Qe7 {[%clk 1:27:34]} 10. e4 {[%clk
1:17:05]} 10... dxe4 {[%clk 1:27:41]} 11. Nxe4 {[%clk 1:17:06]} 11... Nxe4
{[%clk 1:28:07]} 12. Bxe4 {[%clk 1:17:29]} 12... e5 {[%clk 1:28:30]} 13. Bg3
{[%clk 1:09:33]} 13... O-O {[%clk 1:27:27]} 14. Qe2 {[%clk 1:09:03]} 14... f6
{[%clk 1:25:51]} 15. O-O {[%clk 1:04:09]} 15... Be6 {[%clk 1:23:58]} 16. Kh1
{[%clk 1:02:07]} 16... Qf7 {[%clk 1:18:02]} 17. Rfd1 {[%clk 1:00:53]} 17... Rfd8
{[%clk 1:14:35]} 18. b4 {[%clk 0:58:45]} 18... Bf8 {[%clk 1:14:08]} 19. b5
{[%clk 0:54:43]} 19... Na5 {[%clk 1:14:08]} 20. Bxe5 {[%clk 0:54:56]} 20... fxe5
{[%clk 1:09:17]} 21. Ng5 {[%clk 0:45:27]} 21... Qe8 {[%clk 1:06:45]} 22. Bxh7+
{[%clk 0:43:36]} 22... Kh8 {[%clk 1:07:13]} 23. Rxd8 {[%clk 0:37:46]} 23... Rxd8
{[%clk 1:07:37]} 24. Qe4 {[%clk 0:37:41]} 24... Bf7 {[%clk 1:08:01]} 25. Bf5
{[%clk 0:11:52]} 25... Bh5 {[%clk 1:08:24]} 26. Be6 {[%clk 0:09:51]} 26... g6
{[%clk 1:07:11]} 27. Nf7+ {[%clk 0:08:46]} 27... Kh7 {[%clk 1:07:37]} 28. Ng5+
{[%clk 0:07:33]} 28... Kh6 {[%clk 1:07:46]} 29. Nf7+ {[%clk 0:07:58]} 29... Kh7
{[%clk 1:08:14]} 30. Nxd8 {[%clk 0:07:59]} 30... Qxd8 {[%clk 1:08:43]} 31. g4
{[%clk 0:08:22]} 31... Qh4 {[%clk 1:08:57]} 32. Qf3 {[%clk 0:07:18]} 32... e4
{[%clk 1:09:07]} 33. Qf7+ {[%clk 0:03:28]} 33... Bg7 {[%clk 1:09:34]} 34. gxh5
{[%clk 0:03:50]} 34... Qxh5 {[%clk 1:10:00]} 35. Rg1 {[%clk 0:03:01]} 35... Nc4
{[%clk 1:10:28]} 36. Rxg6 {[%clk 0:02:49]} 36... Qd1+ {[%clk 1:10:17]} 37. Rg1
{[%clk 0:02:29]} 1-0